bitfinex-derivatives/quotes_SOLF0:USTF0_20260115
["timestamp","ask_amount","ask_price","bid_price","bid_amount"]
[1768491978060,27.61313612,142.39,142.34,0.044926]
[1768491978262,0.04909786,142.36,142.34,0.044926]
[1768491978567,34.64168893,142.39,142.26,17.21286076]
[1768491978771,33.24168893,142.39,142.27,115.64626076]
[1768491978966,27.61313612,142.43,142.28,17.21286076]
[1768491979165,27.61313612,142.41,142.3,17.23294763]
[1768491979369,27.61313612,142.41,142.31,17.23294763]
[1768491979870,0.05403542,142.37,142.35,0.04951215]
[1768491981171,28.44113751,142.37,142.3,82.9]
[1768491981373,28.44113751,142.37,142.25,115.82566972]
[1768491981577,28.44113751,142.37,142.25,17.38186972]
[1768491981578,34.06969032,142.37,142.25,17.38186972]
[1768491981873,28.38710209,142.36,142.24,6.3288]
[1768491982078,28.38710209,142.35,142.24,23.84183085]
[1768491982271,28.38710209,142.35,142.25,17.51303085]
[1768491982676,0.04752841,142.31,142.28,0.04766071]
[1768491983574,0.04752841,142.31,142.22,23.97195022]
[1768491983974,28.38710209,142.33,142.22,23.97195022]
[1768491984173,28.38710209,142.33,142.22,17.64225022]
[1768491984773,0.052289,142.29,142.22,17.64225022]
[1768491984974,0.052289,142.29,142.21,82.92]
[1768491985475,27.75818373,142.29,142.19,6.3314]
[1768491985673,27.70589473,142.28,142.16,18.03713975]
[1768491986371,0.05410637,142.23,142.16,18.03713975]
[1768491986775,0.05410637,142.23,142.21,0.05285545]
[1768491986970,27.70589473,142.28,142.21,0.05285545]
[1768491987178,82.98,142.3,142.19,18.2826467]
[1768491987383,27.70589473,142.31,142.19,116.7672467]
[1768491987682,27.70589473,142.34,142.22,116.7500467]
[1768491987980,27.70589473,142.34,142.24,98.4545]
[1768491988181,27.70589473,142.34,142.25,6.3286]
[1768491988382,0.0461524,142.29,142.27,0.04831295]
[1768491988575,0.0461524,142.29,142.21,82.98]
[1768491988775,27.70589473,142.32,142.21,82.98]
[1768491988985,27.70589473,142.32,142.21,89.3104]
[1768491989278,27.70589473,142.32,142.2,101.57053963]
[1768491989483,27.70589473,142.32,142.2,83.0]
[1768491989877,0.04955174,142.27,142.2,83.0]
[1768491990575,0.04955174,142.27,142.17,94.96075281]
[1768491990769,27.75544647,142.27,142.17,83.0]
[1768491990970,27.70589473,142.27,142.15,18.74103131]
[1768491991376,0.04427437,142.23,142.15,18.74103131]
[1768491991770,110.72589473,142.22,142.09,126.06683579]
[1768491991974,110.72589473,142.22,142.1,27.50883579]
[1768491992280,27.70589473,142.22,142.12,33.84303579]
[1768491992479,6.3288,142.25,142.14,27.50883579]
[1768491992480,83.04,142.25,142.14,27.50883579]
[1768491992777,83.04,142.25,142.15,0.05339132]
[1768491992981,27.70589473,142.26,142.15,6.38649132]
[1768491993173,27.70589473,142.26,142.15,6.3331]
[1768491993772,27.70589473,142.25,142.11,83.02]
[1768491993972,27.70589473,142.21,142.11,83.02]
[1768491995186,34.73444754,142.21,142.08,6.3361]
[1768491995391,33.33444754,142.21,142.08,6.3361]
[1768491995571,27.70589473,142.19,142.06,110.54883579]
[1768491995776,0.04855029,142.16,142.1,27.50883579]
[1768491996291,0.04855029,142.16,142.1,33.84413579]
[1768491996788,0.04855029,142.16,142.1,27.50883579]
[1768491996987,27.75444502,142.16,142.02,126.11563579]
[1768491997284,27.75444502,142.16,142.05,132.43243579]
[1768491997479,27.70589473,142.16,142.06,126.08773579]
[1768491997779,27.70589473,142.2,142.09,104.8915]
[1768491998079,27.70589473,142.2,142.09,33.84473579]
[1768491998479,27.70589473,142.2,142.11,6.335]
[1768491998683,27.70589473,142.2,142.11,33.84383579]
[1768491998982,27.70589473,142.24,142.13,33.84253579]
[1768491999180,27.70589473,142.24,142.14,126.08209579]
[1768491999383,27.70589473,142.28,142.16,6.3327]
[1768491999584,27.70589473,142.28,142.16,33.84153579]
[1768492000283,27.70589473,142.27,142.15,83.08]
[1768492000482,0.05343207,142.23,142.15,83.08]
[1768492001083,0.05343207,142.23,142.12,33.84323579]
[1768492001284,27.7593268,142.23,142.08,27.50883579]
[1768492001588,27.70589473,142.22,142.08,27.50883579]
[1768492001786,0.04559091,142.17,142.14,0.04822821]
[1768492002881,29.15148564,142.17,142.04,131.7246886]
[1768492003188,0.04559091,142.17,142.07,126.08053579]
[1768492003483,27.70589473,142.21,142.1,126.06043579]
[1768492003883,27.70589473,142.21,142.1,27.50883579]
[1768492004086,0.0473662,142.17,142.07,131.7090886]
[1768492004387,27.70589473,142.17,142.07,33.84553579]
[1768492004889,0.05330496,142.13,142.07,33.84553579]
[1768492005984,27.70589473,142.17,142.09,0.05059172]
[1768492006385,27.70589473,142.21,142.09,0.05059172]
[1768492006688,27.70589473,142.21,142.1,27.50883579]
[1768492006994,27.70589473,142.21,142.11,27.50883579]
[1768492007185,0.05215633,142.17,142.14,0.04532352]
[1768492007782,1.45215633,142.17,142.06,27.50883579]
[1768492007980,0.05215633,142.17,142.06,126.08523579]
[1768492008183,27.70589473,142.18,142.09,6.3356]
[1768492008777,27.70589473,142.18,142.05,110.60883579]
[1768492009284,0.04455525,142.14,142.05,110.60883579]
[1768492009681,27.70589473,142.18,142.05,83.1]
[1768492009878,27.75966344,142.11,142.0,27.50883579]
[1768492010288,83.12,142.14,142.02,27.50883579]
[1768492010487,27.70589473,142.13,142.02,27.50883579]
[1768492010680,30.63516965,142.17,142.03,29.48194271]
[1768492010885,83.12,142.16,142.03,29.48194271]
[1768492011190,83.12,142.16,142.06,0.05220677]
[1768492011191,89.4528,142.16,142.06,0.05220677]
[1768492011488,243.84388062,142.2,142.08,29.48194271]
[1768492011990,30.63516965,142.27,142.14,29.48194271]
[1768492012186,30.63516965,142.25,142.14,112.60194271]
[1768492012382,129.09106965,142.24,142.14,29.48194271]
[1768492012693,0.05219381,142.22,142.13,83.12]
[1768492013084,30.63516965,142.23,142.13,83.12]
[1768492013887,0.04800235,142.19,142.13,83.12]
[1768492014382,0.04800235,142.19,142.15,0.04982197]
[1768492015487,30.63516965,142.27,142.15,29.53176468]
[1768492015790,30.63516965,142.27,142.15,29.48194271]
[1768492016588,30.63516965,142.27,142.17,6.332]
[1768492016788,30.67984242,142.22,142.07,98.5661]
[1768492016983,30.67984242,142.22,142.1,98.55]
[1768492017180,30.63516965,142.22,142.11,6.3348]
[1768492017381,30.63516965,142.22,142.11,29.48194271]
[1768492017586,30.63516965,142.22,142.12,6.3343]
[1768492018085,30.63516965,142.22,142.11,29.48194271]
[1768492018493,0.0445839,142.18,142.11,29.48194271]
[1768492019495,0.0445839,142.18,142.13,0.05324921]
[1768492019695,30.63516965,142.22,142.13,0.05324921]
[1768492019994,30.63516965,142.22,142.11,29.48194271]
[1768492020996,0.04958092,142.18,142.11,35.81664271]
[1768492021193,0.04958092,142.18,142.11,29.48194271]
[1768492021500,36.96366965,142.26,142.14,29.48194271]
[1768492021684,36.96366965,142.26,142.15,29.48194271]
[1768492021886,30.63516965,142.26,142.15,29.48194271]
[1768492022093,6.3291,142.25,142.15,29.48194271]
[1768492022293,30.63516965,142.24,142.12,29.48194271]
[1768492022695,98.4869,142.2,142.06,29.48194271]
[1768492022893,113.80854522,142.19,142.06,29.48194271]
[1768492023094,36.96736965,142.18,142.07,6.3365]
[1768492023390,30.63516965,142.18,142.07,35.81844271]
[1768492023700,0.04827335,142.14,142.07,29.48194271]
[1768492024090,83.12,142.21,142.09,29.48194271]
[1768492024297,30.63516965,142.22,142.11,29.48194271]
[1768492025096,30.63516965,142.26,142.13,29.48194271]
[1768492025305,30.63516965,142.26,142.14,29.48194271]
[1768492025602,30.63516965,142.24,142.14,29.48194271]
[1768492025787,30.63516965,142.24,142.12,83.12]
[1768492026086,35.79005339,142.23,142.1,29.48194271]
[1768492026290,30.63516965,142.2,142.09,6.3356]
[1768492026486,30.63516965,142.2,142.09,29.48194271]
[1768492026687,0.05148278,142.18,142.09,29.48194271]
[1768492027090,30.63516965,142.16,141.99,29.48194271]
[1768492027293,30.63516965,142.14,142.01,29.48194271]
[1768492027797,30.63516965,142.14,142.03,35.82024271]
[1768492027994,30.63516965,142.14,142.03,29.48194271]
[1768492028198,30.63516965,142.14,142.04,29.48194271]
[1768492028592,0.04832393,142.1,142.02,83.12]
[1768492029291,0.04832393,142.1,142.02,211.20614271]
[1768492029498,113.77516965,142.16,142.04,29.48194271]
[1768492029697,35.79763537,142.15,142.05,0.05147751]
[1768492029898,30.63516965,142.15,142.05,6.3376]
[1768492030700,0.05154464,142.11,142.05,6.3376]
[1768492030901,30.63516965,142.15,142.06,6.3369]
[1768492031203,30.63516965,142.15,142.09,0.0479634]
[1768492031705,30.63516965,142.15,142.04,29.48194271]
[1768492032006,30.63516965,142.13,142.02,83.12]
[1768492032199,36.96946965,142.13,142.02,83.12]
[1768492032404,36.96946965,142.13,142.0,29.48194271]
[1768492032405,30.63516965,142.13,142.0,29.48194271]
[1768492032703,30.63516965,142.11,142.0,29.48194271]
[1768492032900,118.93865632,142.1,142.0,29.48194271]
[1768492033212,30.68442841,142.08,141.96,35.82344271]
[1768492033397,30.63516965,142.06,141.92,29.48194271]
[1768492033699,30.63516965,142.05,141.95,29.48194271]
[1768492034197,30.63516965,142.09,141.99,0.04461926]
[1768492034413,88.31810874,142.08,141.99,0.04461926]
[1768492034602,30.63516965,142.09,141.99,0.04461926]
[1768492034603,113.79516965,142.09,141.99,0.04461926]
[1768492034800,30.63516965,142.13,141.99,107.82424213]
[1768492035198,30.63516965,142.16,142.06,6.3368]
[1768492035501,30.63516965,142.16,142.05,98.5835]
[1768492035706,30.63516965,142.16,142.05,0.04434803]
[1768492036001,83.16,142.19,142.06,98.5749]
[1768492036206,270.75716176,142.2,142.09,119.80376494]
[1768492036394,30.63516965,142.19,142.09,21.24736494]
[1768492036598,30.63516965,142.19,142.09,27.58306494]
[1768492036998,30.63516965,142.19,142.13,0.05080929]
[1768492038004,0.04857935,142.17,142.13,0.05080929]
[1768492038207,0.04857935,142.17,142.05,28.92346419]
[1768492038402,35.81901358,142.16,142.04,6.3378]
[1768492038607,5.18384393,142.15,142.04,26.06002206]
[1768492038809,30.63516965,142.12,141.99,118.34862206]
[1768492039012,113.79516965,142.12,142.0,19.72222206]
[1768492039209,30.63516965,142.12,142.0,118.33792206]
[1768492039413,6.3333,142.15,142.02,117.57916364]
[1768492039414,83.16,142.15,142.02,117.57916364]
[1768492039600,83.16,142.15,142.03,18.97276364]
[1768492039804,113.79516965,142.16,142.04,18.97276364]
[1768492040010,5.18331597,142.15,142.04,18.97276364]
[1768492040208,0.05395262,142.11,142.09,0.05266789]
[1768492040409,98.4844,142.2,142.09,0.05266789]
[1768492040410,30.63516965,142.2,142.09,0.05266789]
[1768492040702,5.18456598,142.19,142.07,117.76825481]
[1768492040907,30.63516965,142.2,142.08,19.39499419]
[1768492041108,5.18479669,142.19,142.08,19.39499419]
[1768492041307,5.18479669,142.19,142.04,19.61644995]
[1768492041308,20.31131614,142.19,142.04,19.61644995]
[1768492041508,20.31131614,142.17,142.04,19.61644995]
[1768492041715,20.31131614,142.15,142.04,19.61644995]
[1768492041918,25.49206965,142.14,142.02,6.3388]
[1768492042220,20.31131614,142.14,142.02,19.72062966]
[1768492042511,20.31131614,142.14,142.03,19.72062966]
[1768492043211,20.31131614,142.13,141.99,98.6268]
[1768492043422,0.05050712,142.1,141.98,118.35092966]
[1768492043713,0.05050712,142.1,141.99,19.72062966]
[1768492043912,20.31131614,142.13,142.03,118.31742966]
[1768492044107,20.31131614,142.13,142.03,19.72062966]
[1768492044511,89.493,142.16,142.07,0.04447215]
[1768492044707,20.85556947,142.17,142.07,19.86067623]
[1768492044913,20.85556947,142.17,142.07,19.81620408]
[1768492045407,237.3025652,142.2,142.06,118.39190408]
[1768492045613,237.3025652,142.2,142.08,19.81620408]
[1768492045915,258.15813467,142.2,142.12,0.04907173]
[1768492046120,264.48913467,142.2,142.12,0.04907173]
[1768492046317,5.18317942,142.19,142.12,0.04907173]
[1768492046514,6.37712628,142.17,142.08,19.81620408]
[1768492047015,6.3326,142.17,142.08,19.81620408]
[1768492047420,20.85556947,142.19,142.08,19.81620408]
[1768492047910,0.05028118,142.14,142.11,0.04713981]
[1768492049016,20.85556947,142.12,142.0,19.81620408]
[1768492049213,104.01556947,142.12,142.0,19.81620408]
[1768492049612,83.16,142.14,142.03,19.81620408]
[1768492049812,20.85556947,142.16,142.03,19.81620408]
[1768492050120,0.0491026,142.1,142.04,6.3381]
[1768492050315,6.3339,142.14,142.04,27.05471191]
[1768492050908,6.3339,142.14,142.04,20.71661191]
[1768492051320,20.85556947,142.16,142.04,20.71661191]
[1768492051515,0.04472601,142.1,142.04,20.71661191]
[1768492051708,20.85556947,142.16,142.04,20.71661191]
[1768492051908,27.18866947,142.16,142.09,0.0494122]
[1768492052113,6.3331,142.16,142.09,0.0494122]
[1768492053024,6.3335,142.15,142.09,0.0494122]
[1768492053410,20.79314822,142.17,142.04,98.5902]
[1768492053623,20.79314822,142.17,142.05,20.71661191]
[1768492053922,6.3329,142.16,142.06,6.337]
[1768492054122,6.3329,142.16,142.06,27.05361191]
[1768492054322,6.3329,142.16,142.1,0.05056209]
[1768492055222,6.3319,142.18,142.1,0.05056209]
[1768492055417,237.3025652,142.2,142.1,20.767174]
[1768492055724,20.79314822,142.18,142.1,0.05056209]
[1768492055915,103.95314822,142.18,142.06,20.71661191]
[1768492056109,103.95314822,142.18,142.06,29.91785404]
[1768492056110,83.16,142.18,142.06,29.91785404]
[1768492056310,237.3025652,142.2,142.1,20.71661191]
[1768492056817,237.3025652,142.2,142.14,0.05311662]
[1768492057013,243.6337652,142.2,142.14,0.05311662]
[1768492057523,0.05045796,142.18,142.14,0.05311662]
[1768492058423,0.05045796,142.18,142.1,20.71661191]
[1768492059624,6.38255796,142.18,142.13,0.04818386]
[1768492059825,0.05045796,142.18,142.13,0.04818386]
[1768492063220,20.79314822,142.25,142.14,20.71661191]
[1768492063726,20.79314822,142.26,142.1,181.6674]
[1768492063931,98.4654,142.23,142.1,20.71661191]
[1768492064116,119.25854822,142.23,142.1,20.71661191]
[1768492064317,20.79314822,142.23,142.13,6.3339]
[1768492064521,20.79314822,142.23,142.15,0.04633216]
[1768492064724,0.04866174,142.19,142.15,0.04633216]
[1768492064923,83.14,142.25,142.15,0.04633216]
[1768492065132,83.14,142.25,142.13,20.71661191]
[1768492065520,6.3289,142.25,142.15,27.04941191]
[1768492065726,20.79314822,142.26,142.15,119.23331191]
[1768492065926,6.329,142.25,142.15,20.71661191]
[1768492066127,119.23714822,142.26,142.19,0.04601463]
[1768492066428,0.04438043,142.21,142.19,0.04601463]
[1768492066630,119.23714822,142.26,142.19,0.04601463]
[1768492067022,20.79314822,142.25,142.19,0.04601463]
[1768492067517,0.04773929,142.23,142.19,0.04601463]
[1768492068231,0.04773929,142.23,142.14,6.3336]
[1768492068633,20.79314822,142.23,142.14,6.3336]
[1768492068832,6.3294,142.24,142.14,27.05021191]
[1768492069129,20.79314822,142.19,142.08,20.71661191]
[1768492069527,120.46033031,142.26,142.12,20.76731473]
[1768492069727,20.79314822,142.25,142.12,20.76731473]
[1768492069928,0.04635823,142.2,142.12,20.71661191]
[1768492070229,20.79314822,142.25,142.17,0.04696609]
[1768492071032,23.40602328,142.29,142.17,21.33103289]
[1768492071329,23.40602328,142.29,142.17,104.3840668]
[1768492071530,23.40602328,142.29,142.18,21.2840668]
[1768492071732,0.04711928,142.24,142.22,0.04764289]
[1768492071937,23.40602328,142.29,142.22,0.04764289]
[1768492072636,29.73322328,142.29,142.22,0.04764289]
[1768492073134,6.3276,142.28,142.22,0.04764289]
[1768492073534,98.4098,142.31,142.09,21.2840668]
[1768492073535,23.40602328,142.23,142.09,21.2840668]
[1768492073735,23.40602328,142.23,142.11,21.2840668]
[1768492074041,6.3308,142.21,142.11,21.2840668]
[1768492074537,23.40602328,142.23,142.11,21.2840668]
[1768492074739,121.87322328,142.23,142.15,0.04589376]
[1768492075041,98.4762,142.21,142.15,0.04589376]
[1768492075245,98.4696,142.22,142.15,0.04589376]
[1768492075434,121.87322328,142.23,142.15,0.04589376]
[1768492075435,23.40602328,142.23,142.15,0.04589376]
[1768492075740,121.87702328,142.22,142.15,0.04589376]
[1768492076841,6.3313,142.2,142.15,0.04589376]
[1768492077042,23.40602328,142.22,142.15,0.04589376]
[1768492077534,29.73632328,142.22,142.15,0.04589376]
[1768492077736,5.65530029,142.25,142.15,0.04589376]
[1768492078037,5.65530029,142.25,142.14,27.6174668]
[1768492078038,0.05371717,142.2,142.14,27.6174668]
[1768492078337,23.40602328,142.26,142.19,0.0484625]
[1768492078640,23.40602328,142.26,142.15,21.2840668]
[1768492078842,6.3289,142.25,142.16,6.3324]
[1768492079232,6.3289,142.25,142.16,27.6164668]
[1768492079445,23.40602328,142.26,142.17,6.3321]
[1768492079638,23.40602328,142.26,142.19,0.04744361]
[1768492080543,6.3293,142.24,142.19,0.04744361]
[1768492080739,121.82822328,142.29,142.19,0.04744361]
[1768492080941,6.328,142.27,142.19,0.04744361]
[1768492081242,6.328,142.27,142.18,27.6155668]
[1768492081442,6.328,142.27,142.22,0.05313551]
[1768492082440,29.73322328,142.29,142.22,0.05313551]
[1768492082643,112.83322328,142.29,142.22,0.05313551]
[1768492083048,6.3275,142.28,142.22,0.05313551]
[1768492084846,0.04683983,142.26,142.22,0.05313551]
[1768492085638,6.3268,142.3,142.22,0.05313551]
[1768492086146,6.3271,142.29,142.22,0.05313551]
[1768492086348,29.73312328,142.29,142.22,0.05313551]
[1768492086648,29.73312328,142.29,142.2,21.2840668]
[1768492086844,23.40602328,142.28,142.12,21.2840668]
[1768492087047,23.40602328,142.25,142.12,119.8168668]
[1768492087248,23.40602328,142.22,142.12,21.2840668]
[1768492087545,23.40602328,142.22,142.1,104.20570029]
[1768492087546,23.40602328,142.21,142.1,6.3353]
[1768492087746,23.40602328,142.2,142.08,21.2840668]
[1768492087954,23.40602328,142.2,142.06,98.5774]
[1768492088138,29.06132357,142.2,142.07,21.2840668]
[1768492088447,106.50602328,142.2,142.13,0.05034192]
[1768492088643,0.04491505,142.15,142.13,0.05034192]
[1768492088949,23.40602328,142.2,142.13,0.05034192]
[1768492090142,88.75530029,142.23,142.13,0.05034192]
[1768492090549,5.65530029,142.23,142.13,6.3337]
[1768492090749,112.83532328,142.24,142.13,6.3337]
[1768492090948,112.83532328,142.24,142.17,0.04569558]
[1768492091448,0.05274674,142.22,142.17,0.04569558]
[1768492091645,29.06132357,142.18,142.06,21.2840668]
[1768492092044,23.40602328,142.17,142.02,202.9696668]
[1768492092246,23.40602328,142.17,142.03,21.2840668]
[1768492092749,23.40602328,142.15,142.03,21.2840668]
[1768492092953,23.40602328,142.15,142.04,21.2840668]
[1768492093249,23.40602328,142.15,142.09,0.05235629]
[1768492093447,106.52602328,142.18,142.09,0.05235629]
[1768492093748,0.04786389,142.13,142.09,0.05235629]
[1768492093947,0.04786389,142.13,142.06,21.2840668]
[1768492094141,0.04786389,142.13,142.1,0.04439803]
[1768492094340,23.40602328,142.17,142.1,0.04439803]
[1768492095649,23.40602328,142.16,142.1,0.04439803]
[1768492096052,29.73902328,142.16,142.1,0.04439803]
[1768492096452,23.40602328,142.12,142.01,21.2840668]
[1768492096650,29.74072328,142.12,142.01,21.2840668]
[1768492096847,23.40602328,142.12,142.01,21.2840668]
[1768492097853,23.40602328,142.12,142.05,0.04668848]
[1768492099049,23.40602328,142.11,142.0,6.3397]
[1768492099350,23.40602328,142.1,141.98,21.2840668]
[1768492099950,23.40602328,142.12,142.01,21.2840668]
[1768492100354,23.40602328,142.08,141.98,89.4605]
[1768492100554,23.40602328,142.08,141.97,104.4040668]
[1768492100846,23.19672854,142.06,141.93,98.6683]
[1768492101048,23.19672854,142.06,141.94,25.1335719]
[1768492101450,23.19672854,142.06,141.97,6.3411]
[1768492101643,23.19672854,142.06,141.96,25.1335719]
[1768492101957,23.19672854,142.03,141.92,98.6758]
[1768492102149,23.19672854,142.03,141.91,123.8118719]
[1768492102350,23.24549233,142.02,141.91,123.8118719]
[1768492102655,23.19672854,142.02,141.91,123.8118719]
[1768492102853,23.19672854,142.02,141.92,6.343]
[1768492103253,23.19672854,142.02,141.95,0.04683173]
[1768492104654,0.05397147,142.0,141.95,0.04683173]
[1768492105660,23.19672854,142.02,141.95,0.04683173]
[1768492105862,31.34350795,142.05,141.95,105.04433173]
[1768492106254,31.34350795,142.08,141.96,121.88169978]
[1768492106961,0.05063488,142.03,142.01,0.04816576]
[1768492107365,31.34350795,142.08,142.01,0.04816576]
[1768492107562,25.68820766,142.08,142.01,0.04816576]
[1768492107766,25.68820766,142.08,141.95,121.88709978]
[1768492107968,25.68820766,142.08,141.98,98.6345]
[1768492108262,25.68820766,142.11,142.0,121.85289978]
[1768492108462,25.68820766,142.11,142.0,23.23299978]
[1768492108861,25.68820766,142.16,142.05,98.5861]
[1768492109062,25.68820766,142.16,142.05,83.16]
[1768492109563,0.04497049,142.12,142.05,83.16]
[1768492109761,0.04497049,142.12,142.09,0.0473129]
[1768492110355,25.73317815,142.12,142.01,121.84679978]
[1768492110563,25.73317815,142.12,142.02,83.16]
[1768492110859,31.34350795,142.15,142.05,6.3374]
[1768492111059,25.68820766,142.15,142.05,6.3374]
[1768492111257,25.68820766,142.15,142.04,121.82339978]
[1768492111661,25.68820766,142.15,142.09,0.04752531]
[1768492112161,0.04639485,142.13,142.04,23.23299978]
[1768492112468,25.68820766,142.15,142.04,23.23299978]
[1768492112662,25.68820766,142.15,142.05,6.3374]
[1768492113561,0.04486225,142.11,142.05,6.3374]
[1768492114163,0.04486225,142.11,142.06,6.337]
[1768492114357,0.04486225,142.11,142.05,98.5863]
[1768492114663,25.68820766,142.1,142.0,121.85289978]
[1768492115162,104.17790658,142.16,142.02,23.23299978]
[1768492115360,83.18,142.15,142.02,23.23299978]
[1768492115765,83.18,142.15,142.03,29.57129978]
[1768492115766,6.334,142.14,142.03,29.57129978]
[1768492115965,0.05352378,142.1,142.03,29.57129978]
[1768492116575,0.05352378,142.1,142.01,89.4992]
[1768492116776,0.05352378,142.1,142.01,112.73219978]
[1768492116980,83.18,142.15,142.02,23.23299978]
[1768492117175,89.5134,142.15,142.04,29.62123565]
[1768492117463,89.5134,142.15,142.04,29.57089978]
[1768492117669,89.5134,142.15,142.04,6.3379]
[1768492118370,6.3338,142.14,142.04,6.3379]
[1768492118570,83.18,142.15,142.04,6.3379]
[1768492118772,181.7003,142.15,142.02,29.57179978]
[1768492118973,0.05205607,142.1,142.02,29.57179978]
[1768492120965,83.18,142.09,141.97,6.3409]
[1768492121169,83.18,142.09,141.96,23.23299978]
[1768492121368,6.3357,142.1,141.96,121.87739978]
[1768492121669,83.18,142.09,141.98,23.23299978]
[1768492121967,83.18,142.09,142.0,6.3396]
[1768492122173,83.18,142.09,141.98,23.23299978]
[1768492122174,89.516,142.09,141.98,23.23299978]
[1768492122371,0.04700256,142.05,141.98,23.23299978]
[1768492122867,0.04700256,142.05,141.98,29.57349978]
[1768492123266,0.04700256,142.05,141.98,23.23299978]
[1768492123565,0.04700256,142.05,141.96,106.39299978]
[1768492123765,181.7442,142.09,141.96,106.39299978]
[1768492123961,6.3364,142.08,141.97,6.3408]
[1768492124161,83.18,142.09,141.97,6.3408]
[1768492124366,83.18,142.09,141.97,29.57379978]
[1768492124670,6.3369,142.07,141.97,29.57379978]
[1768492125273,89.5161,142.09,141.98,29.57339978]
[1768492125471,0.04798788,142.03,141.98,29.57339978]
[1768492125669,0.04798788,142.03,141.96,181.808]
[1768492125670,98.5661,142.08,141.93,98.6632]
[1768492125873,6.3382,142.04,141.92,23.23299978]
[1768492126766,98.5942,142.04,141.92,23.23299978]
[1768492127061,0.04801896,141.99,141.92,23.23299978]
[1768492127675,0.04801896,141.99,141.94,0.04567762]
[1768492128667,83.18,142.03,141.94,23.2786774]
[1768492129068,83.18,142.03,141.94,23.23299978]
[1768492129469,98.5525,142.1,141.96,23.23299978]
[1768492129771,83.2,142.09,141.97,23.23299978]
[1768492130076,83.2,142.09,142.02,0.04502115]
[1768492130773,98.5329,142.13,142.02,0.04502115]
[1768492130974,98.5695,142.08,141.93,19.8575359]
[1768492131183,109.62172181,142.09,141.95,19.8575359]
[1768492131477,6.337,142.07,141.96,6.3414]
[1768492131668,83.2,142.06,141.95,19.8575359]
[1768492132382,0.0451032,142.02,141.99,0.04695511]
[1768492132881,83.2,142.05,141.95,19.8575359]
[1768492133175,83.2,142.05,141.99,0.05237712]
[1768492133677,109.59422181,142.13,141.99,0.05237712]
[1768492133970,93.88857461,142.1,141.99,0.05237712]
[1768492134172,83.2,142.1,141.97,19.8575359]
[1768492134769,6.336,142.09,141.98,6.3405]
[1768492135874,6.3365,142.08,141.98,6.3405]
[1768492136177,0.04907706,142.05,141.98,26.1980359]
[1768492136773,6.3383,142.04,141.93,19.8575359]
[1768492136980,83.2,142.03,141.93,19.8575359]
[1768492137278,83.2,142.03,141.97,0.05197676]
[1768492138280,83.2,142.04,141.97,0.05197676]
[1768492138676,83.22,142.06,141.95,19.8575359]
[1768492139077,83.22,142.06,141.99,0.04519767]
[1768492139487,0.04840797,142.04,141.99,0.04519767]
[1768492140081,6.3361,142.09,141.99,19.90273357]
[1768492140376,83.22,142.1,141.99,19.90273357]
[1768492140583,109.28403081,142.09,141.96,19.8575359]
[1768492140781,5.53772321,142.08,141.96,19.8575359]
[1768492140977,98.5586,142.09,141.96,19.8575359]
[1768492141184,109.29066362,142.08,141.96,19.8575359]
[1768492141383,0.04862883,142.04,141.96,19.8575359]
[1768492141686,83.22,142.03,141.92,19.8575359]
[1768492142478,98.5863,142.06,141.92,19.8575359]
[1768492142783,17.06556397,142.05,141.96,0.0503116]
[1768492142987,83.22,142.04,141.96,0.0503116]
[1768492143282,83.22,142.04,141.94,19.8575359]
[1768492143483,83.22,142.04,141.94,26.1998359]
[1768492143683,83.22,142.04,141.95,19.8575359]
[1768492143881,6.3368,142.07,141.96,19.8575359]
[1768492144082,83.22,142.07,141.98,0.05377047]
[1768492144381,83.22,142.07,141.98,19.91130637]
[1768492144580,83.22,142.07,141.98,19.8575359]
[1768492144778,83.22,142.07,142.01,0.05407599]
[1768492144984,83.22,142.09,142.01,0.05407599]
[1768492145686,181.7818,142.09,142.01,0.05407599]
[1768492145884,83.22,142.09,142.01,0.05407599]
[1768492146082,0.05289795,142.06,142.01,0.05407599]
[1768492147786,10.73617129,142.05,141.92,19.8575359]
[1768492147984,0.05289795,142.06,141.92,118.5288359]
[1768492148179,109.62442181,142.09,141.94,19.8575359]
[1768492148377,83.22,142.05,141.94,19.8575359]
[1768492148983,98.548,142.11,141.98,19.90516141]
[1768492149287,93.95888459,142.1,141.98,19.8575359]
[1768492149479,0.05131117,142.06,141.98,19.8575359]
[1768492149681,0.05131117,142.06,141.98,26.1981359]
[1768492151076,0.05131117,142.06,141.96,6.3416]
[1768492151285,0.05131117,142.06,141.95,19.8575359]
[1768492151587,83.22,142.05,141.95,19.8575359]
[1768492151776,0.05028972,142.02,141.95,19.8575359]
[1768492152883,0.05028972,142.02,141.89,98.6961]
[1768492153083,0.05028972,142.02,141.89,19.8575359]
[1768492153284,98.5603,142.09,141.91,19.8575359]
[1768492153488,10.72478856,142.06,141.91,19.8575359]